[Event "Titled Tuesday Blitz March 08 Late 2022"]
[White "Todorovic, Bojan"]
[Black "Petrovic, Aleksa"]
[WhiteFideId "917087"]
[BlackFideId "967629"]
[WhiteElo "2266"]
[BlackElo "2245"]
[Result "1/2-1/2"]
[Round "10"]
[TimeControl "180+1"]
[Date "2022.03.09"]
[WhiteClock "0:00:05"]
[BlackClock "0:00:08"]

1. d4 {[%clk 0:02:57]}  Nf6 {[%clk 0:02:59]} 2. c4 {[%clk 0:02:55]}  e6 {[%clk 0:02:59]} 3. Nf3 {[%clk 0:02:54]}  b6 {[%clk 0:02:58]} 4. g3 {[%clk 0:02:52]}  Ba6 {[%clk 0:02:58]} 5. b3 {[%clk 0:02:49]}  Bb4+ {[%clk 0:02:58]} 6. Bd2 {[%clk 0:02:48]}  Be7 {[%clk 0:02:58]} 7. Bg2 {[%clk 0:02:47]}  c6 {[%clk 0:02:59]} 8. Bc3 {[%clk 0:02:39]}  d5 {[%clk 0:02:58]} 9. Nbd2 {[%clk 0:02:38]}  Nbd7 {[%clk 0:02:56]} 10. O-O {[%clk 0:02:37]}  O-O {[%clk 0:02:55]} 11. Qc2 {[%clk 0:02:34]}  c5 {[%clk 0:02:47]} 12. e4 {[%clk 0:01:56]}  dxc4 {[%clk 0:02:41]} 13. bxc4 {[%clk 0:01:36]}  cxd4 {[%clk 0:02:40]} 14. Nxd4 {[%clk 0:01:34]}  Rc8 {[%clk 0:02:27]} 15. e5 {[%clk 0:01:17]}  Nxe5 {[%clk 0:02:21]} 16. Nxe6 {[%clk 0:01:15]}  fxe6 {[%clk 0:01:58]} 17. Bxe5 {[%clk 0:01:14]}  Rc5 {[%clk 0:01:37]} 18. Bf4 {[%clk 0:01:10]}  Nd5 {[%clk 0:01:21]} 19. Be5 {[%clk 0:00:31]}  Ne3 {[%clk 0:01:15]} 20. fxe3 {[%clk 0:00:26]}  Rxf1+ {[%clk 0:01:09]} 21. Rxf1 {[%clk 0:00:20]}  Rxe5 {[%clk 0:01:09]} 22. Ne4 {[%clk 0:00:15]}  Bb7 {[%clk 0:00:43]} 23. Rd1 {[%clk 0:00:13]}  Qc7 {[%clk 0:00:37]} 24. Qd3 {[%clk 0:00:12]}  Bxe4 {[%clk 0:00:27]} 25. Bxe4 {[%clk 0:00:11]}  h6 {[%clk 0:00:21]} 26. Bh7+ {[%clk 0:00:10]}  Kh8 {[%clk 0:00:18]} 27. Bg6 {[%clk 0:00:11]}  Kg8 {[%clk 0:00:14]} 28. Qd7 {[%clk 0:00:09]}  Qxd7 {[%clk 0:00:12]} 29. Rxd7 {[%clk 0:00:09]}  Kf8 {[%clk 0:00:12]} 30. Rxa7 {[%clk 0:00:09]}  Bc5 {[%clk 0:00:12]} 31. Rf7+ {[%clk 0:00:07]}  Kg8 {[%clk 0:00:12]} 32. Rd7 {[%clk 0:00:06]}  Kf8 {[%clk 0:00:07]} 33. Rf7+ {[%clk 0:00:05]}  Kg8 {[%clk 0:00:08]} 34. Rd7 {[%clk 0:00:05]}  Kf8 {[%clk 0:00:08]} 35. Rf7+ {[%clk 0:00:05]} 1/2-1/2


[Site "https://www.chess.com"]

[Event "Titled Tuesday Blitz March 08 Late 2022"]
[White "orkinyo12345"]
[Black "Bryakin, Mikhail"]
[BlackFideId "4165314"]
[WhiteElo "2534"]
[BlackElo "2417"]
[Result "1-0"]
[Round "10"]
[TimeControl "180+1"]
[Date "2022.03.08"]
[WhiteClock "0:00:04"]
[BlackClock "0:00:17"]

1. c4 {[%clk 0:03:00]}  g6 {[%clk 0:02:57]} 2. Nc3 {[%clk 0:03:00]}  Bg7 {[%clk 0:02:58]} 3. g3 {[%clk 0:03:00]}  Nf6 {[%clk 0:02:57]} 4. Bg2 {[%clk 0:03:00]}  O-O {[%clk 0:02:58]} 5. Nf3 {[%clk 0:02:57]}  d6 {[%clk 0:02:58]} 6. O-O {[%clk 0:02:58]}  Nc6 {[%clk 0:02:58]} 7. d4 {[%clk 0:02:58]}  a6 {[%clk 0:02:55]} 8. b3 {[%clk 0:02:58]}  Rb8 {[%clk 0:02:53]} 9. d5 {[%clk 0:02:58]}  Na5 {[%clk 0:02:53]} 10. Bg5 {[%clk 0:02:59]}  b5 {[%clk 0:02:53]} 11. cxb5 {[%clk 0:02:57]}  axb5 {[%clk 0:02:52]} 12. b4 {[%clk 0:02:57]}  Nc4 {[%clk 0:02:52]} 13. Nd4 {[%clk 0:02:56]}  Bd7 {[%clk 0:02:51]} 14. Qb3 {[%clk 0:02:57]}  h6 {[%clk 0:02:47]} 15. Bxf6 {[%clk 0:02:46]}  Bxf6 {[%clk 0:02:47]} 16. Rfd1 {[%clk 0:02:46]}  Nb6 {[%clk 0:02:34]} 17. Rac1 {[%clk 0:02:31]}  Na4 {[%clk 0:01:49]} 18. Ne4 {[%clk 0:01:13]}  Bg7 {[%clk 0:01:42]} 19. e3 {[%clk 0:01:05]}  Nb6 {[%clk 0:01:36]} 20. Nc3 {[%clk 0:00:47]}  Qe8 {[%clk 0:01:28]} 21. Bf1 {[%clk 0:00:40]}  Bxd4 {[%clk 0:01:24]} 22. exd4 {[%clk 0:00:24]}  e6 {[%clk 0:01:07]} 23. Re1 {[%clk 0:00:21]}  Kg7 {[%clk 0:01:02]} 24. Bh3 {[%clk 0:00:20]}  Nc4 {[%clk 0:00:59]} 25. dxe6 {[%clk 0:00:16]}  fxe6 {[%clk 0:01:00]} 26. Nxb5 {[%clk 0:00:12]}  Bxb5 {[%clk 0:00:58]} 27. Bxe6 {[%clk 0:00:13]}  Nd2 {[%clk 0:00:55]} 28. Rxc7+ {[%clk 0:00:10]}  Kh8 {[%clk 0:00:53]} 29. Qe3 {[%clk 0:00:09]}  Nf3+ {[%clk 0:00:48]} 30. Kh1 {[%clk 0:00:10]}  g5 {[%clk 0:00:47]} 31. Qe4 {[%clk 0:00:07]}  Bd7 {[%clk 0:00:30]} 32. Rxd7 {[%clk 0:00:06]}  Qxd7 {[%clk 0:00:30]} 33. Bxd7 {[%clk 0:00:06]}  Nxe1 {[%clk 0:00:30]} 34. Qg6 {[%clk 0:00:04]}  Rxb4 {[%clk 0:00:14]} 35. Qxh6+ {[%clk 0:00:04]}  Kg8 {[%clk 0:00:15]} 36. Be6+ {[%clk 0:00:04]}  Rf7 {[%clk 0:00:16]} 37. Qg6+ {[%clk 0:00:04]}  Kh8 {[%clk 0:00:17]} 38. Bxf7 {[%clk 0:00:04]} 1-0


[Site "https://www.chess.com"]

[Event "Titled Tuesday Blitz March 08 Late 2022"]
[White "Arabidze, Meri"]
[Black "Maksimovic, Bojan"]
[WhiteFideId "13604040"]
[BlackFideId "14408120"]
[WhiteElo "2335"]
[BlackElo "2448"]
[Result "1-0"]
[Round "11"]
[TimeControl "180+1"]
[Date "2022.03.08"]
[WhiteClock "0:00:04"]
[BlackClock "0:00:01"]

1. d4 {[%clk 0:03:00]}  g6 {[%clk 0:03:00]} 2. Nf3 {[%clk 0:03:00]}  Bg7 {[%clk 0:03:01]} 3. g3 {[%clk 0:03:00]}  d6 {[%clk 0:03:00]} 4. Bg2 {[%clk 0:03:00]}  Nf6 {[%clk 0:03:01]} 5. O-O {[%clk 0:03:01]}  O-O {[%clk 0:03:02]} 6. a4 {[%clk 0:03:01]}  a5 {[%clk 0:02:59]} 7. Re1 {[%clk 0:03:00]}  Nbd7 {[%clk 0:02:57]} 8. e4 {[%clk 0:03:00]}  e5 {[%clk 0:02:58]} 9. Nc3 {[%clk 0:03:00]}  c6 {[%clk 0:02:57]} 10. h3 {[%clk 0:02:55]}  Re8 {[%clk 0:02:55]} 11. Be3 {[%clk 0:02:55]}  h6 {[%clk 0:02:55]} 12. Qd2 {[%clk 0:02:50]}  Kh7 {[%clk 0:02:54]} 13. Rad1 {[%clk 0:02:50]}  Qc7 {[%clk 0:02:52]} 14. b3 {[%clk 0:02:38]}  Bf8 {[%clk 0:02:24]} 15. d5 {[%clk 0:02:26]}  Nb6 {[%clk 0:02:20]} 16. Nh4 {[%clk 0:02:18]}  Bd7 {[%clk 0:02:02]} 17. f4 {[%clk 0:02:05]}  cxd5 {[%clk 0:01:52]} 18. Nxd5 {[%clk 0:01:47]}  Nbxd5 {[%clk 0:01:51]} 19. exd5 {[%clk 0:01:48]}  exf4 {[%clk 0:01:34]} 20. gxf4 {[%clk 0:01:47]}  Ne4 {[%clk 0:01:26]} 21. Qd3 {[%clk 0:01:27]}  f5 {[%clk 0:00:52]} 22. c4 {[%clk 0:01:26]}  Nc5 {[%clk 0:00:47]} 23. Qc2 {[%clk 0:01:19]}  Bg7 {[%clk 0:00:46]} 24. Nf3 {[%clk 0:01:08]}  Qb6 {[%clk 0:00:44]} 25. Rb1 {[%clk 0:00:41]}  Rxe3 {[%clk 0:00:17]} 26. Rxe3 {[%clk 0:00:42]}  Nxa4 {[%clk 0:00:18]} 27. Qf2 {[%clk 0:00:34]}  Nc3 {[%clk 0:00:18]} 28. Rbe1 {[%clk 0:00:26]}  Ne4 {[%clk 0:00:18]} 29. Qc2 {[%clk 0:00:25]}  a4 {[%clk 0:00:17]} 30. bxa4 {[%clk 0:00:23]}  Bxa4 {[%clk 0:00:12]} 31. Qb1 {[%clk 0:00:24]}  Qc7 {[%clk 0:00:04]} 32. Kh2 {[%clk 0:00:21]}  Bd7 {[%clk 0:00:04]} 33. Rb3 {[%clk 0:00:20]}  Ra1 {[%clk 0:00:03]} 34. Qc2 {[%clk 0:00:11]}  Rxe1 {[%clk 0:00:02]} 35. Nxe1 {[%clk 0:00:12]}  Nc5 {[%clk 0:00:02]} 36. Re3 {[%clk 0:00:10]}  Qd8 {[%clk 0:00:02]} 37. Qe2 {[%clk 0:00:09]}  Bf6 {[%clk 0:00:02]} 38. Nf3 {[%clk 0:00:09]}  Ne4 {[%clk 0:00:02]} 39. Nd2 {[%clk 0:00:08]}  Nc5 {[%clk 0:00:02]} 40. Nf3 {[%clk 0:00:08]}  b6 {[%clk 0:00:02]} 41. Qd1 {[%clk 0:00:05]}  Kg7 {[%clk 0:00:03]} 42. Nd4 {[%clk 0:00:05]}  Bxd4 {[%clk 0:00:01]} 43. Qxd4+ {[%clk 0:00:05]}  Kf7 {[%clk 0:00:02]} 44. Qd2 {[%clk 0:00:05]}  Qf6 {[%clk 0:00:02]} 45. Qe2 {[%clk 0:00:06]}  Qd4 {[%clk 0:00:01]} 46. Rf3 {[%clk 0:00:04]} 1-0


[Site "https://www.chess.com"]

[Event "Titled Tuesday Blitz March 08 Late 2022"]
[White "Baker, Chris W"]
[Black "Petrova, Irina"]
[WhiteFideId "401676"]
[BlackFideId "14124122"]
[WhiteElo "2269"]
[BlackElo "1993"]
[Result "1-0"]
[Round "11"]
[TimeControl "180+1"]
[Date "2022.03.09"]
[WhiteClock "0:01:13"]
[BlackClock "0:00:27"]

1. c4 {[%clk 0:03:00]}  e5 {[%clk 0:02:50]} 2. Nc3 {[%clk 0:02:59]}  Nf6 {[%clk 0:02:43]} 3. g3 {[%clk 0:02:58]}  Bb4 {[%clk 0:02:42]} 4. Bg2 {[%clk 0:02:57]}  Bxc3 {[%clk 0:02:37]} 5. bxc3 {[%clk 0:02:54]}  O-O {[%clk 0:02:37]} 6. Nf3 {[%clk 0:02:51]}  Nc6 {[%clk 0:02:25]} 7. O-O {[%clk 0:02:49]}  d6 {[%clk 0:02:22]} 8. d3 {[%clk 0:02:43]}  h6 {[%clk 0:00:46]} 9. Rb1 {[%clk 0:02:41]}  Rb8 {[%clk 0:00:39]} 10. Ba3 {[%clk 0:02:08]}  Bd7 {[%clk 0:00:38]} 11. Nd2 {[%clk 0:02:01]}  b6 {[%clk 0:00:38]} 12. Nb3 {[%clk 0:01:52]}  Re8 {[%clk 0:00:36]} 13. d4 {[%clk 0:01:49]}  e4 {[%clk 0:00:35]} 14. Bc1 {[%clk 0:01:30]}  a5 {[%clk 0:00:35]} 15. a4 {[%clk 0:01:25]}  Bc8 {[%clk 0:00:33]} 16. Bf4 {[%clk 0:01:17]}  Ba6 {[%clk 0:00:33]} 17. c5 {[%clk 0:01:16]}  dxc5 {[%clk 0:00:28]} 18. dxc5 {[%clk 0:01:15]}  Bc4 {[%clk 0:00:27]} 19. cxb6 {[%clk 0:01:13]} 1-0


[Site "https://www.chess.com"]

[Event "Titled Tuesday Blitz March 08 Late 2022"]
[White "Bortnyk, Olexandr"]
[Black "Praggnanandhaa R"]
[WhiteFideId "14120828"]
[BlackFideId "25059530"]
[WhiteElo "2723"]
[BlackElo "2599"]
[Result "1-0"]
[Round "11"]
[TimeControl "180+1"]
[Date "2022.03.08"]
[WhiteClock "0:00:06"]
[BlackClock "0:00:03"]

1. e4 {[%clk 0:02:59]}  c5 {[%clk 0:02:58]} 2. c3 {[%clk 0:02:59]}  d5 {[%clk 0:02:56]} 3. exd5 {[%clk 0:02:59]}  Qxd5 {[%clk 0:02:57]} 4. d4 {[%clk 0:02:59]}  Nf6 {[%clk 0:02:56]} 5. Nf3 {[%clk 0:02:58]}  Nc6 {[%clk 0:02:56]} 6. Be3 {[%clk 0:02:58]}  Bg4 {[%clk 0:02:52]} 7. dxc5 {[%clk 0:02:54]}  Qxd1+ {[%clk 0:02:48]} 8. Kxd1 {[%clk 0:02:55]}  Nd5 {[%clk 0:02:48]} 9. Bb5 {[%clk 0:02:31]}  O-O-O {[%clk 0:02:41]} 10. Kc1 {[%clk 0:02:12]}  f6 {[%clk 0:02:29]} 11. Bxc6 {[%clk 0:02:04]}  bxc6 {[%clk 0:02:27]} 12. b4 {[%clk 0:02:04]}  e5 {[%clk 0:02:25]} 13. Nfd2 {[%clk 0:02:01]}  Be2 {[%clk 0:02:16]} 14. Re1 {[%clk 0:01:55]}  Bd3 {[%clk 0:02:14]} 15. Kb2 {[%clk 0:01:56]}  a5 {[%clk 0:02:01]} 16. a3 {[%clk 0:01:54]}  g6 {[%clk 0:01:46]} 17. c4 {[%clk 0:01:48]}  Nxe3 {[%clk 0:01:45]} 18. fxe3 {[%clk 0:01:49]}  e4 {[%clk 0:01:42]} 19. Nc3 {[%clk 0:01:38]}  f5 {[%clk 0:01:42]} 20. Kb3 {[%clk 0:01:32]}  Bg7 {[%clk 0:01:42]} 21. Ra2 {[%clk 0:01:26]}  Be5 {[%clk 0:01:27]} 22. h3 {[%clk 0:01:05]}  h5 {[%clk 0:01:17]} 23. Na4 {[%clk 0:00:47]}  Kb7 {[%clk 0:01:07]} 24. bxa5 {[%clk 0:00:44]}  Ka6 {[%clk 0:00:57]} 25. Kb4 {[%clk 0:00:43]}  Rhe8 {[%clk 0:00:49]} 26. Nb3 {[%clk 0:00:38]}  Bg3 {[%clk 0:00:47]} 27. Rd1 {[%clk 0:00:35]}  f4 {[%clk 0:00:44]} 28. exf4 {[%clk 0:00:27]}  e3 {[%clk 0:00:43]} 29. Nc1 {[%clk 0:00:24]}  Bb1 {[%clk 0:00:21]} 30. Rxd8 {[%clk 0:00:20]}  Rxd8 {[%clk 0:00:21]} 31. Re2 {[%clk 0:00:19]}  Bxf4 {[%clk 0:00:20]} 32. Nc3 {[%clk 0:00:13]}  Rb8+ {[%clk 0:00:19]} 33. Ka4 {[%clk 0:00:13]}  Bf5 {[%clk 0:00:18]} 34. N1a2 {[%clk 0:00:13]}  Rd8 {[%clk 0:00:09]} 35. Nb4+ {[%clk 0:00:14]}  Kb7 {[%clk 0:00:10]} 36. a6+ {[%clk 0:00:13]}  Kc7 {[%clk 0:00:10]} 37. Ncd5+ {[%clk 0:00:03]}  cxd5 {[%clk 0:00:09]} 38. Nxd5+ {[%clk 0:00:04]}  Rxd5 {[%clk 0:00:03]} 39. cxd5 {[%clk 0:00:05]}  Bd3 {[%clk 0:00:03]} 40. d6+ {[%clk 0:00:05]}  Kd7 {[%clk 0:00:02]} 41. a7 {[%clk 0:00:05]}  Be4 {[%clk 0:00:03]} 42. g3 {[%clk 0:00:04]}  Bh6 {[%clk 0:00:02]} 43. Kb5 {[%clk 0:00:03]}  Bf3 {[%clk 0:00:03]} 44. Kb6 {[%clk 0:00:03]}  Bc6 {[%clk 0:00:03]} 45. a4 {[%clk 0:00:02]}  Bf3 {[%clk 0:00:03]} 46. g4 {[%clk 0:00:02]}  h4 {[%clk 0:00:03]} 47. Ka5 {[%clk 0:00:01]}  Bc6 {[%clk 0:00:02]} 48. Kb4 {[%clk 0:00:02]}  Bf3 {[%clk 0:00:02]} 49. Re1 {[%clk 0:00:02]}  Kc8 {[%clk 0:00:02]} 50. Kc4 {[%clk 0:00:02]}  Bg5 {[%clk 0:00:02]} 51. Kd4 {[%clk 0:00:02]}  Kb7 {[%clk 0:00:02]} 52. d7 {[%clk 0:00:02]}  e2 {[%clk 0:00:03]} 53. Ke5 {[%clk 0:00:01]}  Kxa7 {[%clk 0:00:03]} 54. Kd6 {[%clk 0:00:02]}  Kb7 {[%clk 0:00:03]} 55. c6+ {[%clk 0:00:02]}  Bxc6 {[%clk 0:00:03]} 56. Rxe2 {[%clk 0:00:03]}  Bxa4 {[%clk 0:00:04]} 57. Re8 {[%clk 0:00:02]}  Bc6 {[%clk 0:00:04]} 58. d8=Q {[%clk 0:00:02]}  Bxd8 {[%clk 0:00:04]} 59. Rxd8 {[%clk 0:00:03]}  Bg2 {[%clk 0:00:05]} 60. Rh8 {[%clk 0:00:03]}  g5 {[%clk 0:00:05]} 61. Ke5 {[%clk 0:00:03]}  Bxh3 {[%clk 0:00:05]} 62. Kf5 {[%clk 0:00:04]}  Bg2 {[%clk 0:00:05]} 63. Kxg5 {[%clk 0:00:04]}  h3 {[%clk 0:00:05]} 64. Kf6 {[%clk 0:00:05]}  Kc6 {[%clk 0:00:06]} 65. g5 {[%clk 0:00:05]}  Kd5 {[%clk 0:00:05]} 66. g6 {[%clk 0:00:06]}  Kd4 {[%clk 0:00:03]} 67. g7 {[%clk 0:00:06]}  Bd5 {[%clk 0:00:03]} 68. Rxh3 {[%clk 0:00:06]} 1-0


[Site "https://www.chess.com"]

[Event "Titled Tuesday Blitz March 08 Late 2022"]
[White "Calcada, Lucas Galvan"]
[Black "Qashashvili, Alexandre"]
[WhiteFideId "22746099"]
[BlackFideId "13600842"]
[WhiteElo "1402"]
[BlackElo "2316"]
[Result "0-1"]
[Round "11"]
[TimeControl "180+1"]
[Date "2022.03.09"]
[WhiteClock "0:00:03"]
[BlackClock "0:02:32"]

1. e4 {[%clk 0:02:54]}  c6 {[%clk 0:02:56]} 2. d4 {[%clk 0:02:39]}  d5 {[%clk 0:02:57]} 3. e5 {[%clk 0:02:18]}  Bf5 {[%clk 0:02:56]} 4. Nc3 {[%clk 0:02:15]}  e6 {[%clk 0:02:56]} 5. Nge2 {[%clk 0:02:11]}  h6 {[%clk 0:02:55]} 6. Ng3 {[%clk 0:02:04]}  Bh7 {[%clk 0:02:54]} 7. Bd3 {[%clk 0:01:53]}  Bxd3 {[%clk 0:02:54]} 8. Qxd3 {[%clk 0:01:46]}  Bb4 {[%clk 0:02:55]} 9. Bd2 {[%clk 0:01:38]}  Nd7 {[%clk 0:02:51]} 10. Nce2 {[%clk 0:01:30]}  Bxd2+ {[%clk 0:02:51]} 11. Qxd2 {[%clk 0:01:11]}  Ne7 {[%clk 0:02:52]} 12. f4 {[%clk 0:01:03]}  g6 {[%clk 0:02:42]} 13. O-O-O {[%clk 0:00:57]}  Nf5 {[%clk 0:02:37]} 14. Nxf5 {[%clk 0:00:48]}  gxf5 {[%clk 0:02:38]} 15. Kb1 {[%clk 0:00:35]}  Qb6 {[%clk 0:02:37]} 16. Qe3 {[%clk 0:00:08]}  O-O-O {[%clk 0:02:35]} 17. c3 {[%clk 0:00:06]}  c5 {[%clk 0:02:35]} 18. Nc1 {[%clk 0:00:04]}  Kb8 {[%clk 0:02:34]} 19. Nb3 {[%clk 0:00:04]}  cxd4 {[%clk 0:02:33]} 20. cxd4 {[%clk 0:00:03]}  Rc8 {[%clk 0:02:32]} 0-1


[Site "https://www.chess.com"]

[Event "Titled Tuesday Blitz March 08 Late 2022"]
[White "Celestino, Rafael Teixeira"]
[Black "Andersson, Bjorn 1971"]
[WhiteFideId "2108925"]
[BlackFideId "1702114"]
[WhiteElo "2307"]
[BlackElo "2207"]
[Result "1-0"]
[Round "11"]
[TimeControl "180+1"]
[Date "2022.03.09"]
[WhiteClock "0:00:05"]
[BlackClock "0:00:46"]

1. e4 {[%clk 0:03:00]}  c5 {[%clk 0:02:58]} 2. Nf3 {[%clk 0:03:00]}  Nc6 {[%clk 0:02:59]} 3. d4 {[%clk 0:02:59]}  cxd4 {[%clk 0:02:59]} 4. Nxd4 {[%clk 0:03:00]}  Nf6 {[%clk 0:02:59]} 5. Nc3 {[%clk 0:03:00]}  e5 {[%clk 0:02:59]} 6. Ndb5 {[%clk 0:02:59]}  d6 {[%clk 0:03:00]} 7. Nd5 {[%clk 0:02:59]}  Nxd5 {[%clk 0:02:58]} 8. exd5 {[%clk 0:03:00]}  Ne7 {[%clk 0:02:59]} 9. Be2 {[%clk 0:02:56]}  Ng6 {[%clk 0:02:58]} 10. O-O {[%clk 0:02:54]}  Be7 {[%clk 0:02:58]} 11. g3 {[%clk 0:02:54]}  O-O {[%clk 0:02:58]} 12. h4 {[%clk 0:02:55]}  f5 {[%clk 0:02:57]} 13. h5 {[%clk 0:02:53]}  Nh8 {[%clk 0:02:57]} 14. c4 {[%clk 0:02:53]}  Nf7 {[%clk 0:02:56]} 15. b4 {[%clk 0:02:52]}  Bg5 {[%clk 0:02:55]} 16. c5 {[%clk 0:02:49]}  Bxc1 {[%clk 0:02:47]} 17. Rxc1 {[%clk 0:02:50]}  f4 {[%clk 0:02:40]} 18. cxd6 {[%clk 0:02:27]}  Nxd6 {[%clk 0:02:39]} 19. Nc7 {[%clk 0:02:28]}  Bh3 {[%clk 0:02:37]} 20. Nxa8 {[%clk 0:02:20]}  fxg3 {[%clk 0:02:14]} 21. fxg3 {[%clk 0:02:12]}  Bxf1 {[%clk 0:02:08]} 22. Bxf1 {[%clk 0:02:13]}  Qxa8 {[%clk 0:02:07]} 23. Qg4 {[%clk 0:02:01]}  Qd8 {[%clk 0:02:07]} 24. Bd3 {[%clk 0:01:54]}  Qb6+ {[%clk 0:02:00]} 25. Kh1 {[%clk 0:01:48]}  Qe3 {[%clk 0:02:00]} 26. Rd1 {[%clk 0:00:32]}  Kh8 {[%clk 0:01:57]} 27. Rf1 {[%clk 0:00:16]}  Rg8 {[%clk 0:01:28]} 28. Bb1 {[%clk 0:00:09]}  e4 {[%clk 0:01:22]} 29. Qf4 {[%clk 0:00:06]}  Qe2 {[%clk 0:01:20]} 30. Rf2 {[%clk 0:00:04]}  Qxh5+ {[%clk 0:01:16]} 31. Kg2 {[%clk 0:00:04]}  Qg6 {[%clk 0:01:05]} 32. Rf1 {[%clk 0:00:01]}  h6 {[%clk 0:01:01]} 33. Rh1 {[%clk 0:00:01]}  Re8 {[%clk 0:01:00]} 34. Qe3 {[%clk 0:00:01]}  Qf6 {[%clk 0:00:59]} 35. Bc2 {[%clk 0:00:02]}  Qb2 {[%clk 0:00:58]} 36. Qe2 {[%clk 0:00:02]}  e3 {[%clk 0:00:58]} 37. Kh3 {[%clk 0:00:02]}  Qe5 {[%clk 0:00:57]} 38. Kh2 {[%clk 0:00:02]}  Qxd5 {[%clk 0:00:57]} 39. Rf1 {[%clk 0:00:02]}  Qe5 {[%clk 0:00:56]} 40. Kg1 {[%clk 0:00:03]}  Qxg3+ {[%clk 0:00:53]} 41. Kh1 {[%clk 0:00:03]}  Qh4+ {[%clk 0:00:53]} 42. Kg1 {[%clk 0:00:03]}  Qg5+ {[%clk 0:00:53]} 43. Kh2 {[%clk 0:00:04]}  Ne4 {[%clk 0:00:53]} 44. Qf3 {[%clk 0:00:04]}  Qh4+ {[%clk 0:00:52]} 45. Kg1 {[%clk 0:00:04]}  Ng3 {[%clk 0:00:50]} 46. Qf8+ {[%clk 0:00:04]}  Rxf8 {[%clk 0:00:46]} 47. Rxf8# {[%clk 0:00:05]} 1-0


[Site "https://www.chess.com"]

[Event "Titled Tuesday Blitz March 08 Late 2022"]
[White "Desideri, Ricardo Maruchi"]
[Black "Mangialardo, Tiago Carvalho"]
[WhiteFideId "2110440"]
[BlackFideId "2130718"]
[WhiteElo "1945"]
[BlackElo "2075"]
[Result "0-1"]
[Round "11"]
[TimeControl "180+1"]
[Date "2022.03.09"]
[WhiteClock "0:00:02"]
[BlackClock "0:00:26"]

1. e4 {[%clk 0:03:00]}  e5 {[%clk 0:02:59]} 2. f4 {[%clk 0:03:00]}  exf4 {[%clk 0:02:59]} 3. Bc4 {[%clk 0:03:00]}  d5 {[%clk 0:02:59]} 4. Bxd5 {[%clk 0:02:58]}  Nf6 {[%clk 0:02:58]} 5. Nc3 {[%clk 0:02:59]}  Nxd5 {[%clk 0:02:47]} 6. Nxd5 {[%clk 0:02:55]}  Bd6 {[%clk 0:02:27]} 7. d4 {[%clk 0:02:53]}  c6 {[%clk 0:02:27]} 8. Nxf4 {[%clk 0:01:29]}  O-O {[%clk 0:02:15]} 9. Nf3 {[%clk 0:01:27]}  Bg4 {[%clk 0:02:10]} 10. O-O {[%clk 0:01:24]}  Qb6 {[%clk 0:01:39]} 11. c4 {[%clk 0:01:10]}  Bxf4 {[%clk 0:01:36]} 12. Bxf4 {[%clk 0:01:07]}  Qxb2 {[%clk 0:01:28]} 13. Rf2 {[%clk 0:00:40]}  Qa3 {[%clk 0:01:20]} 14. c5 {[%clk 0:00:35]}  Nd7 {[%clk 0:01:07]} 15. h3 {[%clk 0:00:27]}  Bh5 {[%clk 0:01:06]} 16. Qb3 {[%clk 0:00:15]}  Qa6 {[%clk 0:00:50]} 17. Rb1 {[%clk 0:00:13]}  b6 {[%clk 0:00:48]} 18. Be3 {[%clk 0:00:05]}  Bg6 {[%clk 0:00:42]} 19. Ng5 {[%clk 0:00:02]}  h6 {[%clk 0:00:26]} 0-1


[Site "https://www.chess.com"]